[Event "*** Titled Tuesday Blitz"]
[Site "Chess.com"]
[Date "2021.04.06"]
[Round "1"]
[White "stepakyedael"]
[Black "korbul"]
[Result "1-0"]
[WhiteElo "2284"]
[BlackElo "2564"]
[TimeControl "180+1"]
[EndTime "10:04:55 PDT"]
[Termination "stepakyedael won by resignation"]

1. d4 {[%clk 0:03:00.9]} 1... Nf6 {[%clk 0:02:59.4]} 2. c4 {[%clk 0:03:00.4]}
2... e6 {[%clk 0:02:59.7]} 3. Nf3 {[%clk 0:02:57.6]} 3... b6 {[%clk 0:02:59.3]}
4. a3 {[%clk 0:02:57.6]} 4... Bb7 {[%clk 0:02:58.8]} 5. Nc3 {[%clk 0:02:56.5]}
5... g6 {[%clk 0:02:58.5]} 6. Qc2 {[%clk 0:02:55.3]} 6... Bg7 {[%clk 0:02:56.1]}
7. e4 {[%clk 0:02:55]} 7... d6 {[%clk 0:02:56.3]} 8. Bg5 {[%clk 0:02:52]} 8...
h6 {[%clk 0:02:55.1]} 9. Bh4 {[%clk 0:02:51.2]} 9... Nbd7 {[%clk 0:02:54.8]} 10.
e5 {[%clk 0:02:48.3]} 10... dxe5 {[%clk 0:02:41.8]} 11. dxe5 {[%clk 0:02:45.6]}
11... Bxf3 {[%clk 0:02:36.1]} 12. exf6 {[%clk 0:02:40.5]} 12... Bxf6 {[%clk
0:02:35.8]} 13. Bxf6 {[%clk 0:02:37.1]} 13... Qxf6 {[%clk 0:02:34.2]} 14. gxf3
{[%clk 0:02:36.7]} 14... Qxf3 {[%clk 0:02:33.9]} 15. Qe4 {[%clk 0:02:33.7]}
15... Qxe4+ {[%clk 0:02:31.4]} 16. Nxe4 {[%clk 0:02:33.1]} 16... f5 {[%clk
0:02:31.6]} 17. Nc3 {[%clk 0:02:28]} 17... Ke7 {[%clk 0:02:30.9]} 18. Bg2 {[%clk
0:02:26.4]} 18... Rad8 {[%clk 0:02:29.9]} 19. O-O-O {[%clk 0:02:25]} 19... Nc5
{[%clk 0:02:29.8]} 20. Kc2 {[%clk 0:02:21.8]} 20... a6 {[%clk 0:02:24.9]} 21. b4
{[%clk 0:02:19.6]} 21... Nd7 {[%clk 0:02:24.1]} 22. Rhe1 {[%clk 0:02:17.9]}
22... Nf6 {[%clk 0:02:21.3]} 23. Nd5+ {[%clk 0:02:09.7]} 23... Nxd5 {[%clk
0:02:18.1]} 24. cxd5 {[%clk 0:02:08.1]} 24... Rd6 {[%clk 0:02:17.1]} 25. Rxe6+
{[%clk 0:02:03.5]} 25... Rxe6 {[%clk 0:02:17]} 26. dxe6 {[%clk 0:02:03.5]} 26...
Kxe6 {[%clk 0:02:17.4]} 27. Kc3 {[%clk 0:01:58.5]} 27... g5 {[%clk 0:02:16.1]}
28. Bb7 {[%clk 0:01:52.2]} 28... a5 {[%clk 0:02:15.6]} 29. bxa5 {[%clk
0:01:49.1]} 29... bxa5 {[%clk 0:02:15.4]} 30. Kc4 {[%clk 0:01:46.4]} 30... h5
{[%clk 0:02:14]} 31. Kb5 {[%clk 0:01:43]} 31... g4 {[%clk 0:02:11.9]} 32. Kxa5
{[%clk 0:01:41.9]} 32... f4 {[%clk 0:02:10.6]} 33. Kb5 {[%clk 0:01:38.6]} 33...
f3 {[%clk 0:02:09.7]} 34. a4 {[%clk 0:01:33.8]} 34... Rf8 {[%clk 0:02:08.1]} 35.
a5 {[%clk 0:01:30]} 35... Rf5+ {[%clk 0:02:07.5]} 36. Kb4 {[%clk 0:01:22.6]}
36... Rf4+ {[%clk 0:02:07.1]} 37. Ka3 {[%clk 0:01:19.7]} 37... Rf5 {[%clk
0:02:06.7]} 38. a6 {[%clk 0:01:18.5]} 38... h4 {[%clk 0:02:04.4]} 39. Kb4 {[%clk
0:01:15.8]} 39... Rf4+ {[%clk 0:02:03.1]} 40. Kb5 {[%clk 0:01:15.7]} 40... Rf5+
{[%clk 0:02:03]} 41. Bd5+ {[%clk 0:01:13.2]} 41... Kd6 {[%clk 0:01:58.5]} 42. a7
{[%clk 0:01:08.9]} 42... c6+ {[%clk 0:01:58.7]} 43. Kb6 {[%clk 0:01:07]} 43...
Rf8 {[%clk 0:01:53.4]} 44. Bxc6+ {[%clk 0:01:06.2]} 1-0

[Event "*** Titled Tuesday Blitz"]
[Site "Chess.com"]
[Date "2021.04.06"]
[Round "1"]
[White "gagtemp"]
[Black "chessablanca"]
[Result "0-1"]
[WhiteElo "2000"]
[BlackElo "2489"]
[TimeControl "180+1"]
[EndTime "10:04:55 PDT"]
[Termination "chessablanca won by resignation"]

1. e4 {[%clk 0:03:00.9]} 1... e5 {[%clk 0:02:58.9]} 2. Nf3 {[%clk 0:03:00.9]}
2... Nc6 {[%clk 0:02:52.9]} 3. Bc4 {[%clk 0:03:01.1]} 3... Bc5 {[%clk
0:02:50.1]} 4. O-O {[%clk 0:03:01]} 4... Nf6 {[%clk 0:02:39.5]} 5. d3 {[%clk
0:02:59.3]} 5... d6 {[%clk 0:02:39.6]} 6. a4 {[%clk 0:02:58.7]} 6... Bg4 {[%clk
0:02:38.5]} 7. c3 {[%clk 0:02:58.1]} 7... a6 {[%clk 0:02:35.7]} 8. Re1 {[%clk
0:02:58.1]} 8... h6 {[%clk 0:02:34.2]} 9. Nbd2 {[%clk 0:02:56.4]} 9... Ne7
{[%clk 0:02:32.9]} 10. b4 {[%clk 0:02:55.3]} 10... Ba7 {[%clk 0:02:31.9]} 11. h3
{[%clk 0:02:54.3]} 11... Be6 {[%clk 0:02:27.1]} 12. Nf1 {[%clk 0:02:48]} 12...
Ng6 {[%clk 0:02:26.3]} 13. Bxe6 {[%clk 0:02:45.1]} 13... fxe6 {[%clk 0:02:24.8]}
14. Ra2 {[%clk 0:02:44.9]} 14... O-O {[%clk 0:02:24.7]} 15. Be3 {[%clk
0:02:44.6]} 15... Qe7 {[%clk 0:02:18.8]} 16. N1h2 {[%clk 0:02:36.5]} 16... Rad8
{[%clk 0:02:13.4]} 17. Bxa7 {[%clk 0:02:33.9]} 17... b6 {[%clk 0:02:10.1]} 18.
a5 {[%clk 0:02:27.7]} 18... Nd7 {[%clk 0:02:07.1]} 19. axb6 {[%clk 0:02:19.3]}
19... cxb6 {[%clk 0:02:06.7]} 20. Rxa6 {[%clk 0:02:19.1]} 20... Ra8 {[%clk
0:02:05.3]} 21. Qa4 {[%clk 0:02:16.9]} 21... Nf4 {[%clk 0:02:02.9]} 22. Rd1
{[%clk 0:02:06.8]} 22... Ne2+ {[%clk 0:02:01.2]} 23. Kh1 {[%clk 0:02:01.9]}
23... Nxc3 {[%clk 0:02:01.3]} 24. Qa1 {[%clk 0:01:54.8]} 24... Nxd1 {[%clk
0:01:59.8]} 25. Qxd1 {[%clk 0:01:54.4]} 25... Nb8 {[%clk 0:01:53.1]} 26. Bxb8
{[%clk 0:01:29.6]} 26... Rxa6 {[%clk 0:01:51.2]} 27. Bxd6 {[%clk 0:01:08.2]}
27... Qxd6 {[%clk 0:01:48.4]} 28. Ng4 {[%clk 0:01:08.5]} 28... Qxb4 {[%clk
0:01:38.4]} 29. Ngxe5 {[%clk 0:01:03.2]} 29... Qc3 {[%clk 0:01:35.2]} 30. Ng4
{[%clk 0:00:56.6]} 30... Ra1 {[%clk 0:01:32]} 0-1

[Event "*** Titled Tuesday Blitz"]
[Site "Chess.com"]
[Date "2021.04.06"]
[Round "1"]
[White "elvidirris"]
[Black "Ave_Mariia"]
[Result "1-0"]
[WhiteElo "2073"]
[BlackElo "2473"]
[TimeControl "180+1"]
[EndTime "10:05:00 PDT"]
[Termination "elvidirris won by resignation"]

1. e4 {[%clk 0:03:00.9]} 1... c5 {[%clk 0:02:59.8]} 2. c3 {[%clk 0:02:59.9]}
2... g6 {[%clk 0:02:58.5]} 3. d4 {[%clk 0:02:59.3]} 3... cxd4 {[%clk 0:02:59.1]}
4. cxd4 {[%clk 0:03:00.2]} 4... d5 {[%clk 0:02:59.5]} 5. exd5 {[%clk 0:02:59.5]}
5... Nf6 {[%clk 0:02:56.9]} 6. Nc3 {[%clk 0:02:58.2]} 6... Nxd5 {[%clk
0:02:44.3]} 7. Nf3 {[%clk 0:02:57.1]} 7... Bg7 {[%clk 0:02:43.9]} 8. Bc4 {[%clk
0:02:55.5]} 8... Nb6 {[%clk 0:02:41.9]} 9. Bb3 {[%clk 0:02:54.7]} 9... O-O
{[%clk 0:02:41.8]} 10. h3 {[%clk 0:02:52.1]} 10... Nc6 {[%clk 0:02:41.1]} 11.
Be3 {[%clk 0:02:50.4]} 11... Na5 {[%clk 0:02:32]} 12. O-O {[%clk 0:02:46]} 12...
Nxb3 {[%clk 0:02:32]} 13. Qxb3 {[%clk 0:02:46.4]} 13... Be6 {[%clk 0:02:31.5]}
14. Qd1 {[%clk 0:02:40.5]} 14... Nc4 {[%clk 0:02:26.9]} 15. Qe2 {[%clk
0:02:35.5]} 15... Nxe3 {[%clk 0:02:23.9]} 16. fxe3 {[%clk 0:02:36.4]} 16... Rc8
{[%clk 0:02:22.2]} 17. Rac1 {[%clk 0:02:35.3]} 17... Bc4 {[%clk 0:02:21.9]} 18.
Qf2 {[%clk 0:02:26.6]} 18... Bxf1 {[%clk 0:02:22]} 19. Rxf1 {[%clk 0:02:27]}
19... Qb6 {[%clk 0:02:21]} 20. Ng5 {[%clk 0:02:22.6]} 20... Qf6 {[%clk
0:02:13.6]} 21. Qh4 {[%clk 0:02:13.7]} 21... Qxf1+ {[%clk 0:02:13.6]} 22. Kxf1
{[%clk 0:02:12.1]} 22... h6 {[%clk 0:02:14.1]} 23. Nge4 {[%clk 0:02:10.3]} 23...
Rfe8 {[%clk 0:02:03.1]} 24. Nd5 {[%clk 0:02:06.3]} 24... Kf8 {[%clk 0:02:00]}
25. Nc5 {[%clk 0:02:04]} 25... g5 {[%clk 0:01:42.9]} 26. Qe4 {[%clk 0:01:58.6]}
26... e6 {[%clk 0:01:11.7]} 27. Nd7+ {[%clk 0:01:48.5]} 27... Kg8 {[%clk
0:01:11.8]} 28. N5f6+ {[%clk 0:01:48.3]} 28... Bxf6 {[%clk 0:01:08.9]} 29. Nxf6+
{[%clk 0:01:49.2]} 29... Kg7 {[%clk 0:01:05.6]} 30. Nxe8+ {[%clk 0:01:48.3]}
30... Rxe8 {[%clk 0:01:04.1]} 31. Qxb7 {[%clk 0:01:48.1]} 31... e5 {[%clk
0:01:02.9]} 32. d5 {[%clk 0:01:46.7]} 32... e4 {[%clk 0:01:02.7]} 33. Ke2 {[%clk
0:01:45.5]} 33... Re5 {[%clk 0:01:02.7]} 34. Qc6 {[%clk 0:01:44.9]} 34... f6
{[%clk 0:00:59.9]} 35. d6 {[%clk 0:01:43.4]} 35... Kf7 {[%clk 0:01:00.4]} 36. d7
{[%clk 0:01:41.9]} 36... Ke7 {[%clk 0:00:59]} 37. Qc8 {[%clk 0:01:37.9]} 1-0

[Event "*** Titled Tuesday Blitz"]
[Site "Chess.com"]
[Date "2021.04.06"]
[Round "1"]
[White "Dyadya81"]
[Black "Chandradi"]
[Result "1-0"]
[WhiteElo "2708"]
[BlackElo "2385"]
[TimeControl "180+1"]
[EndTime "10:05:05 PDT"]
[Termination "Dyadya81 won by resignation"]

1. e4 {[%clk 0:02:59.1]} 1... c5 {[%clk 0:02:59.7]} 2. Nf3 {[%clk 0:02:54.9]}
2... e6 {[%clk 0:02:59.4]} 3. d4 {[%clk 0:02:54.6]} 3... cxd4 {[%clk 0:03:00.3]}
4. Nxd4 {[%clk 0:02:55.1]} 4... a6 {[%clk 0:03:00.5]} 5. Nc3 {[%clk 0:02:55.5]}
5... Qc7 {[%clk 0:02:59.9]} 6. Qf3 {[%clk 0:02:54.9]} 6... b6 {[%clk 0:02:56.6]}
7. Bf4 {[%clk 0:02:45.9]} 7... d6 {[%clk 0:02:55.2]} 8. O-O-O {[%clk 0:02:39]}
8... Bb7 {[%clk 0:02:50.3]} 9. Bg3 {[%clk 0:02:02.9]} 9... Nf6 {[%clk
0:02:45.7]} 10. Bd3 {[%clk 0:02:01.7]} 10... Be7 {[%clk 0:02:44.7]} 11. Rhe1
{[%clk 0:02:00.8]} 11... Nbd7 {[%clk 0:02:43.6]} 12. Kb1 {[%clk 0:01:50.1]}
12... b5 {[%clk 0:02:39.4]} 13. Bxb5 {[%clk 0:01:47.8]} 13... axb5 {[%clk
0:02:40.3]} 14. Ndxb5 {[%clk 0:01:47.9]} 14... Qb6 {[%clk 0:02:40]} 15. Bxd6
{[%clk 0:01:45.6]} 15... Bxd6 {[%clk 0:02:30.7]} 16. Nxd6+ {[%clk 0:01:41.5]}
16... Kf8 {[%clk 0:02:30.8]} 17. Nxf7 {[%clk 0:01:38.8]} 17... Bc6 {[%clk
0:02:08.5]} 18. Nxh8 {[%clk 0:01:33.2]} 18... Rb8 {[%clk 0:02:07.4]} 19. b3
{[%clk 0:01:30.8]} 19... Ne5 {[%clk 0:02:04.7]} 20. Qg3 {[%clk 0:01:26.6]} 20...
Qa5 {[%clk 0:02:02.8]} 21. Nd5 {[%clk 0:01:19.7]} 21... Ra8 {[%clk 0:01:49.7]}
22. Qxe5 {[%clk 0:01:15]} 22... Qxa2+ {[%clk 0:01:48.6]} 23. Kc1 {[%clk
0:01:15.4]} 23... Nxe4 {[%clk 0:01:32]} 24. Rxe4 {[%clk 0:01:03.1]} 24... Bxd5
{[%clk 0:01:29.5]} 25. Rxd5 {[%clk 0:01:02.5]} 25... Qa3+ {[%clk 0:01:27.9]} 26.
Kd2 {[%clk 0:00:56.5]} 26... exd5 {[%clk 0:01:26.5]} 27. Qf5+ {[%clk 0:00:48]}
1-0

[Event "*** Titled Tuesday Blitz"]
[Site "Chess.com"]
[Date "2021.04.06"]
[Round "1"]
[White "PrinceMurad09"]
[Black "beto-betun"]
[Result "1-0"]
[WhiteElo "2543"]
[BlackElo "2214"]
[TimeControl "180+1"]
[EndTime "10:05:07 PDT"]
[Termination "PrinceMurad09 won by resignation"]

1. e4 {[%clk 0:03:00.9]} 1... c5 {[%clk 0:02:57.7]} 2. Nf3 {[%clk 0:03:01.2]}
2... d6 {[%clk 0:02:55.7]} 3. d4 {[%clk 0:03:01.6]} 3... cxd4 {[%clk 0:02:55.4]}
4. Nxd4 {[%clk 0:03:02.5]} 4... Nf6 {[%clk 0:02:55.9]} 5. Nc3 {[%clk 0:03:03]}
5... a6 {[%clk 0:02:56.1]} 6. h3 {[%clk 0:03:02.9]} 6... e5 {[%clk 0:02:55.6]}
7. Nde2 {[%clk 0:03:03.4]} 7... Be7 {[%clk 0:02:53]} 8. g4 {[%clk 0:03:03.7]}
8... h6 {[%clk 0:02:47.6]} 9. a4 {[%clk 0:03:03.8]} 9... Be6 {[%clk 0:02:46.7]}
10. Bg2 {[%clk 0:03:04.1]} 10... Nc6 {[%clk 0:02:33.8]} 11. O-O {[%clk
0:03:04.3]} 11... Rc8 {[%clk 0:02:32]} 12. Be3 {[%clk 0:02:58]} 12... O-O {[%clk
0:02:19.3]} 13. f4 {[%clk 0:02:51.9]} 13... exf4 {[%clk 0:02:15.9]} 14. Nxf4
{[%clk 0:02:51.6]} 14... Ne5 {[%clk 0:02:06]} 15. Ncd5 {[%clk 0:02:42.1]} 15...
Bxd5 {[%clk 0:01:57.9]} 16. exd5 {[%clk 0:02:42.3]} 16... Nfd7 {[%clk
0:01:45.1]} 17. Nh5 {[%clk 0:02:40.1]} 17... Bg5 {[%clk 0:01:40.9]} 18. Bd4
{[%clk 0:02:40.5]} 18... Qc7 {[%clk 0:01:13.3]} 19. c3 {[%clk 0:02:35.3]} 19...
g6 {[%clk 0:01:07]} 20. Ng3 {[%clk 0:02:34.8]} 20... Rce8 {[%clk 0:00:49.5]} 21.
Ne4 {[%clk 0:02:34.9]} 21... Qd8 {[%clk 0:00:42.6]} 22. a5 {[%clk 0:02:33.7]}
22... Nf6 {[%clk 0:00:30.6]} 23. Nxg5 {[%clk 0:02:28.6]} 23... hxg5 {[%clk
0:00:31.5]} 24. Qd2 {[%clk 0:02:22.2]} 24... Nh7 {[%clk 0:00:31.2]} 25. Bb6
{[%clk 0:02:18.9]} 25... Qd7 {[%clk 0:00:29.3]} 26. b3 {[%clk 0:02:17.8]} 26...
Rc8 {[%clk 0:00:29.2]} 27. c4 {[%clk 0:02:17.8]} 27... f5 {[%clk 0:00:22.8]} 28.
gxf5 {[%clk 0:02:16.4]} 28... gxf5 {[%clk 0:00:23.7]} 29. Bd4 {[%clk 0:02:15.7]}
29... Rce8 {[%clk 0:00:22.7]} 30. Rae1 {[%clk 0:02:15.1]} 30... Rf7 {[%clk
0:00:20]} 31. c5 {[%clk 0:02:12.3]} 31... g4 {[%clk 0:00:15.1]} 32. hxg4 {[%clk
0:02:10.5]} 32... Nxg4 {[%clk 0:00:16]} 33. c6 {[%clk 0:02:06.1]} 33... bxc6
{[%clk 0:00:15.5]} 34. dxc6 {[%clk 0:02:06.7]} 34... Qc7 {[%clk 0:00:14.5]} 1-0

[Event "*** Titled Tuesday Blitz"]
[Site "Chess.com"]
[Date "2021.04.06"]
[Round "1"]
[White "Mamedyarov_twitch"]
[Black "Giorno"]
[Result "1-0"]
[WhiteElo "3001"]
[BlackElo "2469"]
[TimeControl "180+1"]
[EndTime "10:05:10 PDT"]
[Termination "Mamedyarov_twitch won by resignation"]

1. e4 {[%clk 0:03:00.9]} 1... c5 {[%clk 0:02:56.2]} 2. c3 {[%clk 0:02:59.8]}
2... Qa5 {[%clk 0:02:53.3]} 3. Na3 {[%clk 0:02:58.4]} 3... d6 {[%clk 0:02:51.5]}
4. Nf3 {[%clk 0:02:56.5]} 4... Nc6 {[%clk 0:02:50.3]} 5. d4 {[%clk 0:02:52]}
5... cxd4 {[%clk 0:02:49.8]} 6. Nc4 {[%clk 0:02:52.2]} 6... Qc7 {[%clk 0:02:45]}
7. cxd4 {[%clk 0:02:51.9]} 7... Bg4 {[%clk 0:02:38.2]} 8. d5 {[%clk 0:02:46.6]}
8... Bxf3 {[%clk 0:02:34.5]} 9. gxf3 {[%clk 0:02:30.6]} 9... Nb8 {[%clk
0:02:28.8]} 10. Qa4+ {[%clk 0:02:25]} 10... Nd7 {[%clk 0:02:18.9]} 11. Be3
{[%clk 0:02:21.9]} 11... b5 {[%clk 0:01:48.9]} 12. Qxb5 {[%clk 0:02:16.8]} 12...
Rb8 {[%clk 0:01:49.6]} 13. Qc6 {[%clk 0:01:59.8]} 13... Rc8 {[%clk 0:01:37.3]}
14. Rc1 {[%clk 0:01:54.4]} 14... Qxc6 {[%clk 0:01:11.7]} 15. dxc6 {[%clk
0:01:51.3]} 15... Nb8 {[%clk 0:01:08.4]} 16. c7 {[%clk 0:01:33.4]} 16... Nd7
{[%clk 0:00:55]} 17. Bxa7 {[%clk 0:01:13.1]} 17... e6 {[%clk 0:00:53]} 18. Nb6
{[%clk 0:01:09.3]} 18... Nxb6 {[%clk 0:00:47.1]} 19. Bxb6 {[%clk 0:01:08.8]}
19... d5 {[%clk 0:00:46.4]} 20. Bb5+ {[%clk 0:01:07.7]} 20... Ke7 {[%clk
0:00:45.4]} 21. Bc5+ {[%clk 0:01:05.6]} 1-0

[Event "*** Titled Tuesday Blitz"]
[Site "Chess.com"]
[Date "2021.04.06"]
[Round "1"]
[White "Pantata007"]
[Black "Niktlt"]
[Result "0-1"]
[WhiteElo "2259"]
[BlackElo "2570"]
[TimeControl "180+1"]
[EndTime "10:05:13 PDT"]
[Termination "Niktlt won on time"]

1. d4 {[%clk 0:03:00.9]} 1... Nf6 {[%clk 0:02:59.4]} 2. c4 {[%clk 0:03:01]} 2...
g6 {[%clk 0:02:59.6]} 3. Nc3 {[%clk 0:03:01.2]} 3... Bg7 {[%clk 0:02:59.9]} 4.
e4 {[%clk 0:03:01.2]} 4... d6 {[%clk 0:03:00.5]} 5. Be2 {[%clk 0:03:01.6]} 5...
O-O {[%clk 0:03:00.9]} 6. Bg5 {[%clk 0:03:02.1]} 6... Na6 {[%clk 0:03:01.4]} 7.
Qd2 {[%clk 0:03:01.9]} 7... e5 {[%clk 0:03:01.3]} 8. d5 {[%clk 0:03:02.2]} 8...
c6 {[%clk 0:03:01.6]} 9. h4 {[%clk 0:03:01.6]} 9... Nc5 {[%clk 0:03:01.4]} 10.
f3 {[%clk 0:03:01.1]} 10... cxd5 {[%clk 0:03:01.6]} 11. cxd5 {[%clk 0:02:54.6]}
11... Bd7 {[%clk 0:02:49.9]} 12. h5 {[%clk 0:02:53.6]} 12... a5 {[%clk 0:02:46]}
13. h6 {[%clk 0:02:53]} 13... Bh8 {[%clk 0:02:46.4]} 14. Nh3 {[%clk 0:02:49.6]}
14... a4 {[%clk 0:02:45.6]} 15. Nf2 {[%clk 0:02:48.4]} 15... Qa5 {[%clk
0:02:43.9]} 16. O-O {[%clk 0:02:47.8]} 16... b5 {[%clk 0:02:43]} 17. Rfc1 {[%clk
0:02:21.7]} 17... Rfc8 {[%clk 0:02:40.5]} 18. Nd3 {[%clk 0:02:08]} 18... b4
{[%clk 0:02:37.4]} 19. Nd1 {[%clk 0:02:05.5]} 19... Rab8 {[%clk 0:02:36.2]} 20.
Be3 {[%clk 0:01:48.4]} 20... Ne8 {[%clk 0:02:34.9]} 21. Bxc5 {[%clk 0:01:33.6]}
21... dxc5 {[%clk 0:02:35.8]} 22. Ne3 {[%clk 0:01:34]} 22... Bb5 {[%clk
0:02:27.1]} 23. a3 {[%clk 0:01:02.6]} 23... Nd6 {[%clk 0:02:20.2]} 24. axb4
{[%clk 0:00:27.6]} 24... cxb4 {[%clk 0:02:21.1]} 25. Rxc8+ {[%clk 0:00:27]}
25... Rxc8 {[%clk 0:02:20.4]} 26. Bf1 {[%clk 0:00:22.7]} 26... Bxd3 {[%clk
0:02:15.3]} 27. Bxd3 {[%clk 0:00:19.6]} 27... Qc5 {[%clk 0:02:06.2]} 28. Rxa4
{[%clk 0:00:15]} 28... Bf6 {[%clk 0:02:06.3]} 29. Rxb4 {[%clk 0:00:09.7]} 29...
Bg5 {[%clk 0:02:05.4]} 0-1

[Event "*** Titled Tuesday Blitz"]
[Site "Chess.com"]
[Date "2021.04.06"]
[Round "1"]
[White "Shankovskyi"]
[Black "kaponerde"]
[Result "0-1"]
[WhiteElo "2490"]
[BlackElo "2122"]
[TimeControl "180+1"]
[EndTime "10:05:15 PDT"]
[Termination "kaponerde won by checkmate"]

1. e4 {[%clk 0:02:55.1]} 1... c5 {[%clk 0:02:59.6]} 2. Nf3 {[%clk 0:02:54.8]}
2... g6 {[%clk 0:02:57.2]} 3. d4 {[%clk 0:02:49.8]} 3... cxd4 {[%clk 0:02:57.3]}
4. Nxd4 {[%clk 0:02:50.7]} 4... Bg7 {[%clk 0:02:56.9]} 5. Be3 {[%clk 0:02:48.7]}
5... Nc6 {[%clk 0:02:47.4]} 6. Nc3 {[%clk 0:02:47.6]} 6... Nf6 {[%clk
0:02:46.8]} 7. Bc4 {[%clk 0:02:44.7]} 7... O-O {[%clk 0:02:46.6]} 8. O-O {[%clk
0:02:43.8]} 8... Nxe4 {[%clk 0:02:45.3]} 9. Nxe4 {[%clk 0:02:36.8]} 9... d5
{[%clk 0:02:45.1]} 10. Nxc6 {[%clk 0:02:36.5]} 10... bxc6 {[%clk 0:02:44.5]} 11.
Nc3 {[%clk 0:02:05.8]} 11... dxc4 {[%clk 0:02:43.7]} 12. Qe2 {[%clk 0:02:00.1]}
12... Be6 {[%clk 0:02:31.9]} 13. Rad1 {[%clk 0:01:59.1]} 13... Qa5 {[%clk
0:02:23.8]} 14. Bd4 {[%clk 0:01:50.5]} 14... Bxd4 {[%clk 0:02:05.9]} 15. Rxd4
{[%clk 0:01:51.4]} 15... Rab8 {[%clk 0:02:05.8]} 16. Rb1 {[%clk 0:01:33.3]}
16... Rxb2 {[%clk 0:02:02.4]} 17. Rxb2 {[%clk 0:01:20]} 17... Qxc3 {[%clk
0:02:02.2]} 18. Rb7 {[%clk 0:01:05]} 18... Qxd4 {[%clk 0:01:54]} 19. h3 {[%clk
0:01:04.7]} 19... c3 {[%clk 0:01:42.8]} 20. Rxe7 {[%clk 0:01:03.4]} 20... Rd8
{[%clk 0:01:40.2]} 21. Qa6 {[%clk 0:00:54.1]} 21... Qd1+ {[%clk 0:01:39.6]} 22.
Kh2 {[%clk 0:00:54.1]} 22... Qd6+ {[%clk 0:01:40.1]} 23. g3 {[%clk 0:00:53.4]}
23... Qxe7 {[%clk 0:01:40]} 24. Qa5 {[%clk 0:00:54]} 24... Rd2 {[%clk
0:01:36.5]} 25. Qxc3 {[%clk 0:00:52.7]} 25... Rxf2+ {[%clk 0:01:36.4]} 26. Kg1
{[%clk 0:00:53]} 26... Re2 {[%clk 0:01:30.6]} 27. Qxc6 {[%clk 0:00:52.5]} 27...
Bxh3 {[%clk 0:01:26.4]} 28. Qc8+ {[%clk 0:00:51.8]} 28... Kg7 {[%clk 0:01:25.7]}
29. Qxh3 {[%clk 0:00:47.6]} 29... Qe3+ {[%clk 0:01:24.6]} 30. Kh1 {[%clk
0:00:46.6]} 30... Qf3+ {[%clk 0:01:24.1]} 31. Kg1 {[%clk 0:00:46]} 31... Re1+
{[%clk 0:01:24.4]} 32. Kh2 {[%clk 0:00:46.1]} 32... Rh1# {[%clk 0:01:24.5]} 0-1

[Event "*** Titled Tuesday Blitz"]
[Site "Chess.com"]
[Date "2021.04.06"]
[Round "1"]
[White "Supernotar"]
[Black "Handszar"]
[Result "1-0"]
[WhiteElo "2680"]
[BlackElo "2369"]
[TimeControl "180+1"]
[EndTime "10:05:16 PDT"]
[Termination "Supernotar won on time"]

1. d4 {[%clk 0:02:41.8]} 1... Nf6 {[%clk 0:02:58.9]} 2. c4 {[%clk 0:02:41.4]}
2... g6 {[%clk 0:02:55.9]} 3. Nc3 {[%clk 0:02:41]} 3... d5 {[%clk 0:02:51.2]} 4.
cxd5 {[%clk 0:02:40.8]} 4... Nxd5 {[%clk 0:02:46.2]} 5. e4 {[%clk 0:02:40.4]}
5... Nxc3 {[%clk 0:02:45]} 6. bxc3 {[%clk 0:02:41.3]} 6... Bg7 {[%clk
0:02:40.6]} 7. Nf3 {[%clk 0:02:42.2]} 7... O-O {[%clk 0:02:25.2]} 8. Be3 {[%clk
0:02:43.1]} 8... b6 {[%clk 0:02:21.9]} 9. Qd2 {[%clk 0:02:43.4]} 9... Bb7 {[%clk
0:02:21.6]} 10. Bd3 {[%clk 0:02:43.6]} 10... c5 {[%clk 0:02:05.1]} 11. O-O
{[%clk 0:02:43]} 11... cxd4 {[%clk 0:01:40.4]} 12. cxd4 {[%clk 0:02:43.9]} 12...
Nc6 {[%clk 0:01:39.8]} 13. Bc4 {[%clk 0:02:38]} 13... Na5 {[%clk 0:01:35.3]} 14.
Bd3 {[%clk 0:02:38.3]} 14... Rc8 {[%clk 0:01:27.7]} 15. Rac1 {[%clk 0:02:33.1]}
15... Qd7 {[%clk 0:01:23.7]} 16. h3 {[%clk 0:02:26.5]} 16... Qa4 {[%clk
0:01:14.7]} 17. Qe2 {[%clk 0:02:22]} 17... e6 {[%clk 0:00:57.8]} 18. Rfd1 {[%clk
0:02:20.5]} 18... Qa3 {[%clk 0:00:36.3]} 19. Rxc8 {[%clk 0:02:16.8]} 19... Rxc8
{[%clk 0:00:35.9]} 20. Ne5 {[%clk 0:02:13.2]} 20... Nc6 {[%clk 0:00:24.6]} 21.
Nxc6 {[%clk 0:02:08.3]} 21... Rxc6 {[%clk 0:00:15.1]} 22. d5 {[%clk 0:01:58.5]}
22... exd5 {[%clk 0:00:13.9]} 23. exd5 {[%clk 0:01:59.4]} 23... Rd6 {[%clk
0:00:12.1]} 24. Bc4 {[%clk 0:01:56.9]} 24... Rd8 {[%clk 0:00:05.3]} 25. Bb3
{[%clk 0:01:54.1]} 25... Qd6 {[%clk 0:00:03.4]} 26. Qf3 {[%clk 0:01:52]} 1-0